[Event "CZE-ch U16 Open 2023"]
[Site "Teplice"]
[Date "2023.03.14"]
[Round "5.2"]
[White "Fizer, Marek"]
[Black "Seidl, Jan"]
[Result "1-0"]
[ECO "B12"]
[WhiteElo "1929"]
[BlackElo "2025"]
[Annotator "TA"]
[PlyCount "73"]
[EventDate "2023.03.09"]
[EventType "swiss"]
[EventCountry "CZE"]
[SourceTitle "playchess.com"]
[Source "ChessBase"]
[SourceQuality "1"]
[TimeControl "40/5400+30:1800+30"]

{[%evp 9,73,-8,-29,-26,-20,-29,2,-8,0,-27,-13,-66,-71,-77,-86,-70,-50,-50,-47,-48,-29,-39,-37,-44,103,-69,-47,-70,-70,-81,-37,-78,-66,-81,-70,-100,-61,-87,-45,-100,-27,-92,52,52,212,201,200,173,174,166,170,73,330,300,825,718,1135,750,1150,531,520,529,410,195,29987,29988]} 1. e4 {[%emt 0:00:03]} c6 {[%emt 0:00:04]} 2. d4 {[%emt 0:00:08]} d5 {[%emt 0:00:02]} 3. f3 {[%emt 0:00:06]} e6 {[%emt 0:00:09]} 4. Nc3 {[%emt 0:00:11]} Bb4 {[%emt 0:00:17]} 5. Bf4 {[%emt 0:00:23]} Nf6 {[%emt 0:01:13]} 6. Qd3 $1 {[%emt 0:00:43] B12: Caro-Kann: Advance Variation.} O-O {[%emt 0:01:00]} 7. Nge2 {[%emt 0:01:02]} b6 {[%emt 0:04:12]} 8. Bg5 {[%emt 0:06:50] The position is equal.} Ba6 {[%emt 0:04:18]} 9. Qe3 {[%emt 0:01:26]} Be7 {[%emt 0:00:07] [#]} 10. e5 $146 {[%emt 0:03:24] [#]} (10. h4 $11) ({Predecessor:} 10. O-O-O Ng4 11. fxg4 Bxg5 12. Nf4 c5 13. g3 cxd4 14. Qxd4 Bxf1 15. Rhxf1 Bf6 16. Qa4 {1-0 Cioara,A (2385)-Engqvist,T (2355) Salongernas IM 5th 2005 (3)}) 10... Ng4 $1 $15 {[%emt 0:03:52][%mdl 64] Discovered Attack} 11. Qf4 {[%emt 0:09:16]} Bxg5 {[%emt 0:00:53]} 12. Qxg4 {[%emt 0:00:08]} c5 {[%emt 0:02:41]} 13. f4 {[%emt 0:04:49]} Be7 {[%emt 0:02:52]} 14. O-O-O $1 {[%emt 0:01:13]} Nc6 {[%emt 0:09:51] ...b5 is the strong threat.} 15. Kb1 {[%emt 0:05:12]} b5 {[%emt 0:09:09][%cal Bb6b5,Bb5b4][%mdl 32] White must now prevent ...b4.} 16. dxc5 $1 {[%emt 0:07:35]} Qa5 {[%emt 0:08:01]} (16... b4 $15 17. Ne4 Qa5 18. Nf6+ Kh8) 17. Ng3 $2 {[%emt 0:12:51]} (17. Nc1 $1 $16) 17... b4 $1 {[%emt 0:01:27]} 18. Nh5 {[%emt 0:06:51][%csl Gh5][%cal Rg4g7]} g6 $36 {[%emt 0:00:08][%mdl 2048] Black has some pressure.} 19. Ne2 {[%emt 0:01:53]} (19. Bxa6 bxc3 20. Qg3 Rfb8 $19) 19... Bc4 $1 {[%emt 0:06:30]} (19... Bxc5 20. Nf6+ Kg7 21. Ng3 $18) 20. Nc1 {[%emt 0:02:37] Hoping for Nf6+.} Qxc5 {[%emt 0:00:17]} 21. Nf6+ {[%emt 0:03:36]} Bxf6 {[%emt 0:04:19]} 22. exf6 {[%emt 0:00:11] Threatens to win with Qg5.} Nd4 {[%emt 0:03:54]} (22... Bxf1 23. Nb3 Qd6 24. Rhxf1 $14) 23. Bxc4 {[%emt 0:08:48]} Qxc4 {[%emt 0:03:35]} (23... h5 $2 24. Qg5 Nf5 25. Bd3 $18) 24. Rd2 {[%emt 0:01:34] [#]} Rac8 {[%emt 0:00:24]} (24... Rfc8 $1 $17 25. Rhd1 Nf5) 25. Qh3 {[%emt 0:08:50] [#]} (25. Nd3 $1 $11) 25... Kh8 {[%emt 0:02:57]} (25... Nxc2 26. Qh6 Na3+ 27. bxa3) ({Black should try} 25... Nf5 $1 $17 26. Nd3 Qd4) 26. Nd3 $14 {[%emt 0:02:57] Ne5 would be deadly.} Nc6 {[%emt 0:01:06]} (26... Nxc2 $2 27. Rc1 Na3+ 28. bxa3 $18) (26... Nf5 $1 $14) 27. Qh6 {[%emt 0:02:42][%csl Gf6][%cal Rh6g7]} Rg8 {[%emt 0:00:05] Prevents Qg7+} 28. h4 {[%emt 0:02:40] And now h5 would win.} Qe4 {[%emt 0:00:14]} 29. Qg5 {[%emt 0:03:25]} Rc7 {[%emt 0:04:14]} 30. Re1 {[%emt 0:02:13]} (30. h5 $18 {and White stays clearly on top.}) 30... Qc4 $2 {[%emt 0:01:11][%mdl 8192]} (30... Qd4 $16) 31. g4 $18 {[%emt 0:00:54]} a5 $2 {[%emt 0:02:24]} (31... Qd4 32. Rh2 Na5) 32. h5 {[%emt 0:00:55]} a4 {[%emt 0:00:04]} 33. hxg6 {[%emt 0:00:39]} fxg6 {[%emt 0:00:12]} 34. Ne5 {[%emt 0:00:26]} ({Weaker is} 34. Rxe6 Nd4 35. f7 (35. Re7 $2 Nf3 $19) 35... Nxe6 $16) (34. Rh1 $142 {Rdh2 would kill now.} Rgc8 35. Rdh2) 34... Nxe5 {[%emt 0:00:25]} 35. Qxe5 {[%emt 0:00:10] Threatening mate with f7+.} Rf7 {[%emt 0:00:31]} 36. Rh2 {[%emt 0:00:41]} (36. Qxe6 $142 Qc7 37. g5 (37. Qxd5 Rxf6 38. Qd4 Qxf4 $18)) 36... Re8 $2 {[%emt 0:00:34]} (36... Rgf8 $18 37. g5 (37. Qxe6 Rxf6 38. Qe7 R8f7 $11) 37... b3) 37. Reh1 {[%emt 0:00:28] Weighted Error Value: White=0.46/Black=0.63} 1-0

[Event "CZE-ch U16 Open 2023"]
[Site "Teplice"]
[Date "2023.03.14"]
[Round "5.3"]
[White "Kubin, Tomas Daniel"]
[Black "Lang, Simon"]
[Result "0-1"]
[ECO "B84"]
[WhiteElo "1936"]
[BlackElo "1974"]
[Annotator "TA"]
[PlyCount "54"]
[EventDate "2023.03.09"]
[EventType "swiss"]
[EventCountry "CZE"]
[SourceTitle "playchess.com"]
[Source "ChessBase"]
[SourceQuality "1"]
[TimeControl "40/5400+30:1800+30"]

{[%evp 23,54,0,12,21,20,0,18,-31,-23,-65,-70,-69,0,0,54,40,50,-16,0,0,37,0,444,206,689,-72,-64,-1150,-1145,-1120,-1110,-1062,-499]} 1. e4 {[%emt 0:00:05]} c5 {[%emt 0:00:47]} 2. Nf3 {[%emt 0:00:15]} d6 {[%emt 0:00:47]} 3. d4 {[%emt 0:00:19]} cxd4 {[%emt 0:00:55]} 4. Nxd4 {[%emt 0:00:11]} Nf6 {[%emt 0:00:53]} 5. Nc3 {[%emt 0:00:20]} a6 {[%emt 0:01:23]} 6. Be2 {[%emt 0:00:27]} e6 {[%emt 0:01:28]} 7. a4 {[%emt 0:04:24]} Nc6 {[%emt 0:03:25]} 8. Be3 {[%emt 0:02:40]} Be7 {[%emt 0:02:01]} 9. O-O {[%emt 0:00:56]} O-O {[%emt 0:02:18]} 10. f4 {[%emt 0:01:24]} Qc7 {[%emt 0:02:39]} 11. Nb3 {[%emt 0:02:19]} b6 {[%emt 0:02:44]} 12. g4 {[%emt 0:05:30][%cal Bg2g4,Bg4g5][%mdl 32]} Re8 {[%emt 0:03:20]} 13. g5 {[%emt 0:07:17] B85: Sicilian Scheveningen: 6 Be2 a6, lines with early Be3.} Nd7 {[%emt 0:01:11]} 14. Qe1 {[%emt 0:04:54] [#]} Bb7 $146 {[%emt 0:09:23]} ({Predecessor:} 14... Bf8 15. Qh4 g6 16. f5 Nde5 17. Rf4 Nb4 18. Qf2 Nxc2 19. Bxb6 Qb8 20. Rf1 Bd7 {0-1 Bernard,B (2288)-Juptner,J (2241) CZE-chT2c 0405 2004 (3.1)}) 15. f5 {[%emt 0:11:37]} (15. Qf2 $11 {might be stronger.}) 15... exf5 $15 {[%emt 0:06:42] [#] ...Nb4 would be deadly.} 16. exf5 {[%emt 0:00:28]} (16. Nd5 Qd8 17. Qg3 (17. exf5 $2 Bxg5 18. Qg3 Bxe3+ 19. Nxe3 Nf6 $19) (17. Rxf5 g6 $17) 17... fxe4 $17) 16... Nb4 $1 {[%emt 0:08:13]} (16... Nce5 17. Qg3 $11 (17. Nd4 Nc4 $11)) 17. Nd4 {[%emt 0:04:44]} Bf8 {[%emt 0:05:23]} (17... Bf6 $15 18. gxf6 Rxe3) 18. Qg3 $36 {[%emt 0:04:30][%mdl 2048] White is pushing.} g6 {[%emt 0:05:18]} (18... Qc5 $11) 19. h4 {[%emt 0:07:49][%cal Bh2h4,Bh4h5][%mdl 32]} Ne5 {[%emt 0:10:08]} 20. fxg6 {[%emt 0:03:51]} (20. Rad1 $14) 20... hxg6 {[%emt 0:02:34]} (20... fxg6 {looks sharper.} 21. Rf6 Bg7 22. h5 Bxf6 23. gxf6 Qf7) 21. h5 {[%emt 0:02:08]} Re7 {[%emt 0:02:48]} 22. Rf4 {[%emt 0:08:15]} Nec6 $2 {[%emt 0:06:14][%mdl 8192]} (22... Rae8 $11 {and Black has nothing to worry.}) 23. Raf1 {[%emt 0:07:03]} (23. hxg6 $142 Nxd4 24. Bxd4) 23... Bg7 $2 {[%emt 0:04:59]} (23... Rae8 24. hxg6 Ne5 25. gxf7+ Rxf7 26. Rxf7 Nxf7 27. g6 $18) (23... Ne5 24. R1f2 (24. Qh2 Bg7 $16) 24... Bg7) 24. Nxc6 $2 {[%emt 0:02:38]} (24. hxg6 $18 {Intending Qh3 and mate.} Rxe3 25. Qh4 (25. gxf7+ Kf8 $18) 25... Rg3+ 26. Kh2 Rg2+ 27. Kh1) 24... Qxc6 $17 {[%emt 0:00:59]} (24... Rxe3 $2 25. Qxe3 Qxc6 26. Bf3 $18 (26. Rxb4 $2 Qg2#)) 25. Rxb4 $4 {[%emt 0:00:35][%mdl 8192] [#]} (25. Bd4 $15 Nd5 26. Bf3) 25... Rxe3 $1 $19 {[%emt 0:00:26][%mdl 576] Double Attack. Black is clearly winning.} 26. Qh2 {[%emt 0:06:19]} Qc5 {[%emt 0:01:05][%cal Re3g3]} ({And not} 26... Bxc3 27. hxg6 $19) 27. Qf2 {[%emt 0:04:42]} Rg3+ {An exciting game.   Weighted Error Value: White=1.02/Black=0.70} ({Less strong is} 27... Qxg5+ 28. Rg4 Qc5 29. hxg6 $14 (29. Qxf7+ Kh8 $11)) (27... Qxb4 $142 28. Qxf7+ Kh8) 0-1

[Event "CZE-ch U16 Open 2023"]
[Site "Teplice"]
[Date "2023.03.14"]
[Round "5.4"]
[White "Janous, Marek"]
[Black "Werner, Hong Quan Dan"]
[Result "1/2-1/2"]
[ECO "B31"]
[WhiteElo "2124"]
[BlackElo "2085"]
[Annotator "TA"]
[PlyCount "82"]
[EventDate "2023.03.09"]
[EventType "swiss"]
[EventCountry "CZE"]
[SourceTitle "playchess.com"]
[Source "ChessBase"]
[SourceQuality "1"]
[TimeControl "40/5400+30:1800+30"]

{[%evp 12,82,31,11,23,8,11,12,14,21,28,17,37,29,35,0,25,24,49,43,46,0,27,19,60,6,131,128,103,121,136,58,52,56,88,56,64,18,18,7,85,15,106,0,0,0,0,0,0,0,0,0,0,0,0,0,0,0,0,0,0,0,0,0,0,0,0,0,0,0,0,0,0]} 1. e4 {[%emt 0:00:48]} c5 {[%emt 0:00:32]} 2. Nf3 {[%emt 0:00:15]} Nc6 {[%emt 0:00:15]} 3. Bb5 {[%emt 0:01:18]} g6 {[%emt 0:00:14]} 4. Bxc6 {[%emt 0:01:07]} dxc6 {[%emt 0:00:45]} 5. d3 {[%emt 0:00:07]} Bg7 {[%emt 0:00:14]} 6. h3 {[%emt 0:00:07]} Nf6 {[%emt 0:00:25]} 7. Nc3 {[%emt 0:00:54]} Nd7 {[%emt 0:00:37] B31: Sicilian: 2...Nc6 3 Bb5 g6.} 8. O-O {[%emt 0:00:59]} e5 {[%emt 0:00:24]} 9. Be3 {[%emt 0:00:26]} b6 $1 {[%emt 0:00:37][%mdl 4] now scores much better than the old 9...Qe7.} 10. Qd2 {[%emt 0:00:07]} h6 {[%emt 0:01:34]} 11. Nh2 {[%emt 0:00:14]} Nf8 {[%emt 0:00:46]} 12. f4 {[%emt 0:00:11]} exf4 {[%emt 0:00:22]} 13. Bxf4 {[%emt 0:00:06]} g5 {[%emt 0:01:31]} 14. Bg3 {[%emt 0:01:16]} Ng6 {[%emt 0:00:48]} 15. Rae1 {[%emt 0:02:30]} O-O {[%emt 0:04:45] [#]} 16. Kh1 $146 {[%emt 0:02:42]} (16. e5 $14) ({Predecessor:} 16. Qe2 Re8 17. Qf3 Re7 18. Ng4 Bxg4 19. Qxg4 c4 20. Rd1 cxd3 21. Rxd3 Qc8 22. Qf5 {½-½ Andreev,E (2420)-Alekseev,E (2623) BL2-West 1920 2019 (3.1)}) 16... Be6 {[%emt 0:04:25]} 17. Qe2 {[%emt 0:01:59]} Qd7 {[%emt 0:02:28]} 18. Qh5 {[%emt 0:10:03]} (18. e5 $1 $14) 18... Kh7 {[%emt 0:09:32] [#]} (18... Rae8 $11) 19. e5 $1 $16 {[%emt 0:05:51] Strongly threatening Ne4.} f5 {[%emt 0:05:49] Wards off Ne4. Threatens to win with ...f4.} 20. exf6 {[%emt 0:00:21]} Bxf6 {[%emt 0:00:24] [#]} 21. Rxf6 $1 {[%emt 0:24:39][%mdl 512]} Rxf6 $14 {[%emt 0:01:16]} 22. Ne4 $1 {[%emt 0:00:12][%csl LRf6,LRg5]} Raf8 {[%emt 0:14:05]} 23. Nxf6+ {[%emt 0:01:12]} (23. Nf3 {keeps more tension.} Kg7 24. Ne5 Qd5 25. Kh2) 23... Rxf6 {[%emt 0:00:05]} 24. Ng4 {[%emt 0:00:43]} (24. a4 $14) 24... Bxg4 $11 {[%emt 0:00:44]} 25. Qxg4 {[%emt 0:00:06]} Qf7 {[%emt 0:03:57]} (25... Qxg4 $11 {keeps the balance.} 26. hxg4 Kg7) 26. Qc4 {[%emt 0:01:53] White is more active.} ({White should try} 26. Kh2 $16) 26... Rf1+ {[%emt 0:04:59]} (26... Qxc4 $11 {remains equal.} 27. dxc4 Kg7) 27. Kh2 {[%emt 0:04:07]} (27. Rxf1 $16 Qxf1+ 28. Kh2) 27... Qxc4 {[%emt 0:03:53] The position is equal.} 28. dxc4 {[%emt 0:00:41]} Rxe1 {[%emt 0:00:22]} 29. Bxe1 {[%emt 0:00:07][%mdl 4096] Endgame KB-KN} Ne5 {[%emt 0:02:15]} 30. b3 {[%emt 0:01:48]} Kg6 {[%emt 0:01:09]} 31. Bc3 {[%emt 0:00:22]} Kf5 {[%emt 0:03:17]} 32. Kg3 {[%emt 0:02:20]} h5 {[%emt 0:01:08]} 33. Kf2 {[%emt 0:01:21]} b5 {[%emt 0:10:40]} 34. cxb5 {[%emt 0:00:56]} cxb5 {[%emt 0:00:04]} 35. Bd2 {[%emt 0:03:03]} Nc6 {[%emt 0:03:05]} 36. c3 {[%emt 0:04:43]} Nd8 {[%emt 0:01:46]} 37. Kf3 {[%emt 0:10:02] aiming for g4+.} Ne6 {[%emt 0:01:52]} 38. g4+ {[%emt 0:15:25]} hxg4+ {[%emt 0:00:11]} 39. hxg4+ {[%emt 0:00:01]} Ke5 {[%emt 0:00:10]} 40. Be1 {[%emt 0:02:29]} Kd5 {[%emt 0:01:19]} 41. Bd2 {[%emt 0:31:53]} a6 {[%emt 0:30:53] Weighted Error Value: White=0.18 (very precise) /Black=0.21 (precise)} 1/2-1/2

[Event "CZE-ch U16 Open 2023"]
[Site "Teplice"]
[Date "2023.03.14"]
[Round "5.5"]
[White "Hladky, Tadeas"]
[Black "Dolensky, Filip"]
[Result "1/2-1/2"]
[ECO "C03"]
[WhiteElo "1973"]
[BlackElo "2108"]
[Annotator "TA"]
[PlyCount "173"]
[EventDate "2023.03.09"]
[EventType "swiss"]
[EventCountry "CZE"]
[SourceTitle "playchess.com"]
[Source "ChessBase"]
[SourceQuality "1"]
[TimeControl "40/5400+30:1800+30"]

{[%evp 10,173,0,0,64,50,58,30,31,5,1,4,33,0,33,27,32,27,35,27,56,49,32,30,40,40,56,61,67,35,36,35,39,32,41,22,20,20,22,-21,-13,-33,49,43,121,0,0,0,0,-86,-87,-93,-87,-93,-49,-75,-58,-70,-58,-75,0,-68,-35,-58,-20,-73,-77,-89,-89,-101,-58,-58,0,-108,-88,-85,-58,-162,-161,-152,-58,-76,-66,-66,-65,-65,-31,-109,-65,-65,-65,-65,0,-65,-65,-58,0,-58,0,-51,-37,-58,-34,-74,-73,-61,-35,-79,-64,-72,-72,-68,-64,-64,-64,-64,-57,-58,-57,-64,-58,-64,-57,-58,0,-74,-45,-71,-54,-81,-76,-83,-83,-132,-134,-138,-135,-209,-88,-101,-91,-91,-85,-85,-30,-55,-14,-14,-14,-14,-14,-14,-13,-13,-13,-13,-13,-13,-13,-14,-13,-13,-13,-13,-13,-12850]} 1. e4 {[%emt 0:00:03]} e6 {[%emt 0:02:01]} 2. d4 {[%emt 0:00:29][%cal Bd2d4,Bd4c5][%mdl 32]} d5 {[%emt 0:00:13]} 3. Nd2 {[%emt 0:01:16]} Be7 {[%emt 0:02:19]} 4. Ngf3 {[%emt 0:00:09]} Nf6 {[%emt 0:00:22]} 5. Bd3 {[%emt 0:00:11]} c5 {[%emt 0:00:48]} 6. dxc5 {[%emt 0:00:12]} Nc6 {[%emt 0:03:28] C03: French Tarrasch: Unusual Black 3rd moves.} (6... dxe4 $11 7. Nxe4 Nxe4 8. Bxe4 Qxd1+ 9. Kxd1 Bxc5) 7. O-O {[%emt 0:01:24]} O-O {[%emt 0:01:43]} 8. a3 {[%emt 0:06:01]} a5 {[%emt 0:03:53] White has an edge.} 9. exd5 {[%emt 0:05:45]} exd5 {[%emt 0:01:31]} 10. h3 {[%emt 0:00:38]} Bxc5 {[%emt 0:02:37] [#]} 11. Nb3 $146 {[%emt 0:01:39]} ({Predecessor:} 11. b3 Qd6 12. Bb2 Re8 13. Re1 Bxh3 14. gxh3 Qg3+ 15. Kh1 Qxh3+ 16. Kg1 Bxf2+ 17. Kxf2 Ng4+ 18. Kg1 Qg3+ 19. Kh1 Nf2# {0-1 Indriunas,M (1792)-Kalvaitis,S (2169) Plunge op-A 38th 2018 (3)}) 11... Bd6 {[%emt 0:11:35]} 12. Re1 {[%emt 0:03:27]} h6 {[%emt 0:03:41]} 13. Be3 {[%emt 0:02:07]} Re8 {[%emt 0:03:22]} 14. Nbd4 {[%emt 0:11:23]} Be6 {[%emt 0:05:47]} 15. Nxe6 {[%emt 0:06:23]} Rxe6 {[%emt 0:02:27]} 16. Nd4 {[%emt 0:03:23]} Re8 {[%emt 0:12:37]} 17. Nf5 {[%emt 0:11:26]} Be5 {[%emt 0:07:29]} 18. c3 {[%emt 0:00:51]} Ne7 {[%emt 0:05:51]} 19. Qf3 {[%emt 0:15:39][%cal Oe3h6] White has more active pieces.} Nxf5 {[%emt 0:03:17]} 20. Qxf5 {[%emt 0:02:18][%cal Oe3h6]} Qc7 {[%emt 0:02:21]} 21. Rad1 {[%emt 0:02:33]} Rad8 {[%emt 0:00:37]} 22. Bb5 {[%emt 0:10:22] This pair of bishops is nice.} Re6 {[%emt 0:01:48]} 23. a4 {[%emt 0:01:48]} Ne4 {[%emt 0:02:30]} 24. Qf3 {[%emt 0:04:15]} Rf6 {[%emt 0:03:46]} 25. Qe2 {[%emt 0:00:32]} Rg6 {[%emt 0:01:42]} (25... Bh2+ $15 26. Kh1 Bg3) 26. Bd3 $14 {[%emt 0:02:47]} f5 {[%emt 0:00:18]} ({Don't do} 26... Bh2+ 27. Kh1 Re8 28. Bb5 $16) (26... Re6 $14) 27. Bd4 {[%emt 0:01:12]} (27. Bb1 $16) 27... Bxd4 $11 {[%emt 0:00:53]} 28. cxd4 {[%emt 0:00:04]} Qf4 {[%emt 0:01:25]} 29. Bxe4 {[%emt 0:03:22]} (29. f3 $11 Ng5 30. Kh1) 29... fxe4 $17 {[%emt 0:00:58]} ({But not} 29... dxe4 $6 30. d5 $11) 30. Rc1 {[%emt 0:00:56]} Rf8 {[%emt 0:01:36]} 31. Rc3 {[%emt 0:01:13]} Rg5 {[%emt 0:02:00]} 32. Rf1 {[%emt 0:00:36]} Rf6 {[%emt 0:01:20]} 33. Kh1 {[%emt 0:00:29]} Qh4 {[%emt 0:01:07]} 34. Kh2 {[%emt 0:00:55]} Qf4+ {[%emt 0:00:50]} (34... Rgf5 $5 {[%cal Rf5f2]}) 35. Kh1 {[%emt 0:00:02]} Rfg6 {[%emt 0:00:36]} 36. Rg1 {[%emt 0:00:19]} Rf5 $40 {[%emt 0:00:33][%mdl 128] Black attacks.} 37. Rf1 {[%emt 0:00:57]} (37. f3 $1 $11 {remains equal.}) 37... Kh7 {[%emt 0:01:18]} 38. Rb3 {[%emt 0:00:35]} b6 {[%emt 0:00:25]} 39. Rc3 {[%emt 0:00:03]} Rgf6 {[%emt 0:00:43]} 40. Kg1 {[%emt 0:00:57]} Rg6 {[%emt 0:03:28]} (40... Qg5 $15) 41. Kh1 $1 {[%emt 0:30:59]} Qh4 {[%emt 0:30:22]} 42. Kh2 {[%emt 0:01:11]} Qf6 {[%emt 0:00:47]} 43. Qe3 {[%emt 0:00:00]} ({White must play} 43. Qd2 $1 $15) 43... Qd6+ $1 $19 {[%emt 0:00:00]} 44. Kh1 {[%emt 0:00:00] [#]} Rgf6 {[%emt 0:00:00]} (44... Qd7 $1 $17 45. f4 Qxa4) 45. Kg1 {[%emt 0:00:00]} Qb4 {[%emt 0:00:00]} 46. b3 {[%emt 0:00:00]} Rg6 {[%emt 0:00:00]} 47. Kh1 {[%emt 0:00:00]} Qe7 {[%emt 0:00:00]} 48. Qe2 {[%emt 0:00:00]} (48. f4 $15) 48... Qf6 {[%emt 0:00:00]} (48... Qh4 {feels hotter.} 49. Kh2 Qg5 50. f3 Qf4+) 49. Qe3 {[%emt 0:00:00]} Qh4 {[%emt 0:00:00][%cal Of5f3] Strongly threatening ...Rf3!} 50. Kh2 {[%emt 0:00:00]} Qf6 {[%emt 0:00:00]} 51. Kh1 {[%emt 0:00:00]} Qd6 {[%emt 0:00:00]} 52. Qe2 {[%emt 0:00:00]} Qb4 {[%emt 0:00:00]} 53. Qe3 {[%emt 0:00:00]} Rgf6 {[%emt 0:00:00]} 54. Kg1 $1 {[%emt 0:00:00]} b5 {[%emt 0:00:00]} 55. axb5 {[%emt 0:00:00]} Qxb5 {[%emt 0:00:00]} 56. Rc5 {[%emt 0:00:00]} Qd7 {[%emt 0:00:00][%cal Of5f3] ...Rf3! would be deadly.} 57. Rc3 {[%emt 0:00:00]} Rg5 {[%emt 0:00:00] White must now prevent ...Rf3.} 58. Kh2 {[%emt 0:00:00]} Qd6+ {[%emt 0:00:00]} 59. Kh1 {[%emt 0:00:00]} Rgf5 {[%emt 0:00:00]} 60. Kg1 {[%emt 0:00:00]} Qe6 {[%emt 0:00:00]} 61. Qe2 {[%emt 0:00:00]} Rg5 {[%emt 0:00:00]} 62. Kh2 {[%emt 0:00:00]} Qd6+ {[%emt 0:00:00]} 63. Kh1 {[%emt 0:00:00]} Rgf5 {[%emt 0:00:30]} 64. Kg1 $1 {[%emt 0:00:00]} Qb4 {[%emt 0:01:25][%csl LRc3,LRd4]} 65. Qe3 {[%emt 0:00:00]} Rf7 {[%emt 0:00:53]} 66. Rc5 {[%emt 0:00:00]} Qb7 {[%emt 0:01:49]} ({Black should play} 66... Qb6 $15) 67. Rc3 {[%emt 0:00:00]} (67. Rxa5 $11 Qc6 68. Qc1 Qxc1 69. Rxc1) 67... Qd7 {[%emt 0:00:12]} 68. Qe2 {[%emt 0:00:00]} Rg5 {[%emt 0:00:22]} 69. Kh2 {[%emt 0:00:00]} Qd6+ {[%emt 0:00:08]} 70. Kh1 {[%emt 0:00:00]} Qg6 {[%emt 0:00:30]} 71. Rg1 {[%emt 0:00:00]} (71. f3 $142) 71... Qf6 $17 {[%emt 0:00:08][%csl LRd4,LRf2]} 72. f3 {[%emt 0:00:00]} Qxd4 {[%emt 0:00:28]} 73. Re3 {[%emt 0:01:34] [#]} (73. Qc2 $17) 73... exf3 {[%emt 0:01:37]} (73... Rg3 $1 $19 {[%cal Of7f3] aiming for ...Rfxf3!} 74. Rd1 Qb6) 74. Rxf3 {[%emt 0:00:06]} Rxf3 {[%emt 0:00:23]} 75. Qxf3 $19 {[%emt 0:00:03][%mdl 4096] Endgame KQR-KQR} Qe4 {[%emt 0:00:14]} 76. Rd1 {[%emt 0:02:28]} Qxf3 {[%emt 0:02:23]} (76... Rf5 $17 77. Qd3 Qxd3 78. Rxd3 Kg6) 77. gxf3 $17 {[%emt 0:00:04] KR-KR} Rg3 {[%emt 0:04:21]} 78. Rxd5 {[%emt 0:00:08] The position is equal.} Rxf3 {[%emt 0:00:35]} 79. Kg2 {[%emt 0:00:38]} Rxb3 {[%emt 0:00:06]} 80. Rxa5 {[%emt 0:00:02]} Kg6 {[%emt 0:00:24]} 81. Rc5 {[%emt 0:00:15]} h5 {[%emt 0:00:38]} 82. h4 {[%emt 0:00:21]} Rd3 {[%emt 0:00:42]} 83. Rg5+ {[%emt 0:00:11]} Kh6 {[%emt 0:00:06]} 84. Ra5 {[%emt 0:00:04]} Rc3 {[%emt 0:00:18]} 85. Rb5 {[%emt 0:00:04]} g6 {[%emt 0:00:28]} 86. Rb7 {[%emt 0:00:20]} Rc4 {[%emt 0:00:32]} 87. Rb5 $2 {[%mdl 40960] Weighted Error Value: White=0.19 (very precise) /Black=0.23 (precise) . An unexpected result.} (87. Kh3 $11) 1/2-1/2